fUST/lending_fUST_20250529
["ID","MTS","AMOUNT","RATE_DAILY","PERIOD"]
[362877596,1748506244209,-182.6,0.00021369,2]
[362877599,1748506244219,-430.0,0.00021369,2]
[362877601,1748506244232,-430.0,0.00021369,2]
[362877603,1748506244245,-430.0,0.00021369,2]
[362877606,1748506244258,-999.99,0.00021369,2]
[362877608,1748506244271,-333.36,0.00021369,2]
[362877610,1748506244285,-510.54,0.00021369,2]
[362877613,1748506244297,-807.69,0.00021369,2]
[362877615,1748506244311,-430.0,0.00021369,2]
[362877618,1748506244324,-430.0,0.00021369,2]
[362877620,1748506244338,-430.0,0.00021369,2]
[362877622,1748506244350,-430.0,0.00021369,2]
[362877625,1748506244363,-520.18,0.00021369,2]
[362877627,1748506244375,-430.0,0.00021369,2]
[362877629,1748506244386,-430.0,0.00021369,2]
[362877631,1748506244398,-430.0,0.00021369,2]
[362877634,1748506244410,-434.25,0.00021369,2]
[362877636,1748506244424,-955.91,0.00021369,2]
[362877638,1748506244437,-710.46,0.00021369,2]
[362877641,1748506244449,-153.2,0.00021369,2]
[362877643,1748506244462,-430.0,0.00021369,2]
[362877645,1748506244472,-430.0,0.00021369,2]
[362877647,1748506244482,-1303.19,0.00021369,2]
[362877650,1748506244494,-430.0,0.00021369,2]
[362877652,1748506244505,-151.0,0.00021427,2]
[362877654,1748506244518,-151.0,0.00021427,2]
[362877657,1748506244530,-151.0,0.00021427,2]
[362877659,1748506244543,-151.0,0.00021427,2]
[362877661,1748506244555,-151.0,0.00021427,2]
[362877664,1748506244569,-500.0,0.00021518,2]
[362877666,1748506244582,-294.98029817,0.00021521,5]
[362877669,1748506244595,-430.0,0.00021643,2]
[362877671,1748506244607,-430.0,0.00021643,2]
[362877673,1748506244618,-430.0,0.00021643,2]
[362877675,1748506244628,-999.99,0.00021643,2]
[362877677,1748506244639,-510.54,0.00021643,2]
[362877679,1748506244651,-807.69,0.00021643,2]
[362877682,1748506244664,-430.0,0.00021643,2]
[362877684,1748506244679,-430.0,0.00021643,2]
[362877686,1748506244691,-430.0,0.00021643,2]
[362877688,1748506244705,-430.0,0.00021643,2]
[362877691,1748506244716,-430.0,0.00021643,2]
[362877693,1748506244727,-430.0,0.00021643,2]
[362877695,1748506244738,-434.25,0.00021643,2]
[362877697,1748506244751,-955.91,0.00021643,2]
[362877700,1748506244762,-710.46,0.00021643,2]
[362877701,1748506244772,-430.0,0.00021643,2]
[362877702,1748506244782,-430.0,0.00021643,2]
[362877703,1748506244792,-6.21784062,0.00021643,2]
[362877711,1748506244975,-1296.97215938,0.00021643,2]
[362877713,1748506244986,-430.0,0.00021643,2]
[362877715,1748506244996,-294.98029817,0.00021762,5]
[362877717,1748506245007,-151.0,0.000218,2]
[362877719,1748506245018,-151.0,0.000218,2]
[362877721,1748506245029,-151.0,0.000218,2]
[362877723,1748506245040,-8346.94101422,0.00021846,2]
[362877790,1748506245648,-1910.98,0.0001638,2]
[362877792,1748506245658,-156.85347537,0.0001716,2]
[362877794,1748506245670,-3665.10652463,0.0001716,2]
[362877796,1748506245679,-5732.94,0.0001794,2]
[362877798,1748506245688,-430.0,0.00019178,2]
[362877800,1748506245698,-430.0,0.00019452,2]
[362877802,1748506245710,-430.0,0.00019726,2]
[362877804,1748506245719,-3000.0,0.000219,2]
[362877806,1748506245728,-3000.0,0.0002191,2]
[362877808,1748506245737,-533.85490726,0.00021917,2]
[362877810,1748506245747,-430.0,0.00021917,2]
[362877812,1748506245756,-430.0,0.00021917,2]
[362877814,1748506245765,-999.99,0.00021917,2]
[362877816,1748506245775,-510.54,0.00021917,2]
[362877818,1748506245786,-807.69,0.00021917,2]
[362877820,1748506245795,-430.0,0.00021917,2]
[362877822,1748506245804,-430.0,0.00021917,2]
[362877824,1748506245813,-164.9,0.00021917,2]
[362877825,1748506245822,-430.0,0.00021917,2]
[362877827,1748506245831,-430.0,0.00021917,2]
[362877829,1748506245840,-430.0,0.00021917,2]
[362877831,1748506245850,-434.25,0.00021917,2]
[362877833,1748506245859,-955.91,0.00021917,2]
[362877835,1748506245868,-710.46,0.00021917,2]
[362877837,1748506245877,-430.0,0.00021917,2]
[362877839,1748506245886,-430.0,0.00021917,2]
[362877842,1748506245896,-1303.19,0.00021917,2]
[362877843,1748506245905,-430.0,0.00021917,2]
[362877845,1748506245914,-3000.0,0.0002192,2]
[362877847,1748506245925,-3000.0,0.0002193,2]
[362877849,1748506245934,-3000.0,0.0002194,2]
[362877851,1748506245943,-3000.0,0.0002195,2]
[362877853,1748506245952,-3000.0,0.0002196,2]
[362877855,1748506245961,-3000.0,0.0002197,2]
[362877857,1748506245971,-3000.0,0.0002198,2]
[362877859,1748506245980,-3000.0,0.0002199,2]
[362877861,1748506245990,-3000.0,0.00022,2]
[362877863,1748506245999,-151.0,0.00022,7]
[362877865,1748506246009,-151.0,0.00022,7]
[362877867,1748506246018,-2885.1,0.00022,2]
[362877869,1748506246027,-177.0,0.00022,2]
[362877871,1748506246036,-294.98029817,0.00022003,6]
[362877873,1748506246045,-3000.0,0.0002201,2]
[362877875,1748506246054,-3000.0,0.0002202,2]
[362877877,1748506246064,-525.06034091,0.00022028,2]
[362877879,1748506246074,-4257.253424,0.0002203,2]
[362877881,1748506246083,-161.34873999,0.00022091,2]
[362877883,1748506246092,-430.0,0.00022191,2]
[362877885,1748506246102,-430.0,0.00022191,2]
[362877887,1748506246112,-999.99,0.00022191,2]
[362877889,1748506246122,-510.54,0.00022191,2]
[362877891,1748506246132,-807.69,0.00022191,2]
[362877893,1748506246141,-430.0,0.00022191,2]
[362877895,1748506246151,-430.0,0.00022191,2]
[362877897,1748506246160,-173.69324808,0.00022191,2]
[362879212,1748506513527,7425.94131461,0.00016,2]
[362879213,1748506513550,9010.44128571,0.00016,2]
[362879214,1748506513571,563.61739968,0.00016,2]
[362879216,1748506729720,166.504531,0.00013699,2]
[362879234,1748507312467,101658.0,0.00022,30]
[362879237,1748507322201,162.21134387,0.0002,30]
[362879238,1748507324652,167.0,0.00016,2]
[362879239,1748507325477,167.0,0.00016,2]
[362879267,1748507431978,-223.47304591,0.00016852,2]
[362879268,1748507431987,-168.19204084,0.00017052,2]
[362879269,1748507431997,-1006.31,0.00017152,2]
[362879270,1748507432007,-168.19204084,0.00017457,2]
[362879271,1748507432017,-300.0,0.00017501,2]
[362879272,1748507432026,-300.0,0.00017501,2]
[362879273,1748507432038,-300.0,0.00017501,2]
[362879274,1748507432051,-300.0,0.00017501,2]
[362879275,1748507432060,-1200.0,0.00017501,2]
[362879276,1748507432070,-16601.3112325,0.00017502,2]
[362879277,1748507432079,-500.0,0.00017739,2]
[362879278,1748507432090,-1068.5681791,0.00017756,2]
[362879279,1748507432099,-168.19204084,0.00017862,2]
[362879280,1748507432110,-2012.62,0.00017969,2]
[362879281,1748507432120,-168.19204084,0.00018266,2]
[362879282,1748507432131,-300.0,0.00018593,2]
[362879283,1748507432141,-306.48328259,0.00018662,2]
[362879284,1748507432150,-168.19204084,0.00018671,2]
[362879285,1748507432159,-500.0,0.00018673,2]
[362879286,1748507432169,-3018.94,0.00018785,2]
[362879287,1748507432178,-652.5105904,0.000189,2]
[362879288,1748507432187,-207.85990425,0.000189,2]
[362879289,1748507432196,-161.34873999,0.00019078,2]
[362879290,1748507432205,-420.0,0.00019106,2]
[362879291,1748507432215,-300.0,0.00019106,2]
[362879292,1748507432225,-500.0,0.00019173,2]
[362879293,1748507432234,-500.0,0.00019173,2]
[362879294,1748507432243,-500.0,0.00019173,2]
[362879295,1748507432252,-20525.2665711,0.00019174,2]
[362879296,1748507432262,-500.0,0.00019177,2]
[362879297,1748507432272,-339.5353511,0.00019177,2]
[362879298,1748507432282,-500.0,0.00019177,2]
[362879299,1748507432291,-500.0,0.00019177,2]
[362879300,1748507432300,-500.0,0.00019177,2]
[362879301,1748507432310,-602.9945476,0.00019177,2]
[362879302,1748507432319,-500.0,0.00019177,2]
[362879303,1748507432329,-500.0,0.00019177,2]
[362879304,1748507432338,-500.0,0.00019177,2]
[362879305,1748507432347,-500.0,0.00019177,2]
[362879306,1748507432357,-500.0,0.00019177,2]
[362879307,1748507432366,-500.0,0.00019177,2]
[362879308,1748507432376,-500.0,0.00019177,2]
[362879309,1748507432386,-500.0,0.00019177,2]
[362879310,1748507432396,-500.0,0.00019177,2]
[362879311,1748507432406,-500.0,0.00019177,2]
[362879312,1748507432415,-265.36481764,0.00019177,2]
[362879313,1748507432425,-450.0,0.00019177,2]
[362879314,1748507432435,-430.0,0.00019178,2]
[362879315,1748507432444,-430.0,0.00019178,2]
[362879316,1748507432454,-555.94,0.00019178,2]
[362879317,1748507432590,-430.0,0.00019178,2]
[362879318,1748507432600,-430.0,0.00019178,2]
[362879319,1748507432609,-430.0,0.00019178,2]
[362879320,1748507432618,-430.0,0.00019178,2]
[362879321,1748507432627,-430.0,0.00019178,2]
[362879322,1748507432636,-402.34893282,0.00019178,2]
[362879323,1748507432646,-430.0,0.00019178,2]
[362879324,1748507432656,-430.0,0.00019178,2]
[362879325,1748507432665,-430.0,0.00019178,2]
[362879326,1748507432674,-430.0,0.00019178,2]
[362879327,1748507432684,-430.0,0.00019178,2]
[362879328,1748507432693,-388.80018372,0.00019178,2]
[362879329,1748507432703,-430.0,0.00019178,2]
[362879330,1748507432712,-430.0,0.00019178,2]
[362879331,1748507432721,-430.0,0.00019178,2]
[362879332,1748507432731,-430.0,0.00019178,2]
[362879333,1748507432740,-430.0,0.00019178,2]
[362879334,1748507432750,-430.0,0.00019178,2]
[362879335,1748507432759,-377.39182041,0.00019178,2]
[362879336,1748507432770,-430.0,0.00019178,2]
[362879337,1748507432779,-334.37116385,0.00019178,2]
[362879338,1748507432789,-430.0,0.00019178,2]
[362879339,1748507432799,-430.0,0.00019178,2]
[362879340,1748507432808,-430.0,0.00019178,2]
[362879341,1748507432818,-430.0,0.00019178,2]
[362879342,1748507432827,-430.0,0.00019178,2]
[362879343,1748507432837,-352.12763143,0.00019178,2]
[362879344,1748507432846,-430.0,0.00019178,2]
[362879345,1748507432856,-430.0,0.00019178,2]
[362879346,1748507432865,-420.34985679,0.00019178,2]
[362879347,1748507432875,-430.0,0.00019178,2]
[362879348,1748507432884,-430.0,0.00019178,2]
[362879349,1748507432894,-430.0,0.00019178,2]
[362879350,1748507432903,-430.0,0.00019178,2]
[362879351,1748507432912,-421.87053855,0.00019178,2]
[362879352,1748507432922,-434.04241686,0.00019178,2]
[362879353,1748507432931,-430.0,0.00019178,2]
[362879354,1748507432940,-430.0,0.00019178,2]
[362879355,1748507432950,-403.80840727,0.00019178,2]
[362879356,1748507432960,-430.0,0.00019178,2]
[362879357,1748507432969,-435.19012237,0.00019178,2]
[362879358,1748507432979,-430.0,0.00019178,2]
[362879359,1748507432988,-430.0,0.00019178,2]
[362879360,1748507432997,-400.0,0.00019178,2]
[362879361,1748507433007,-521.16,0.00019178,2]
[362879362,1748507433017,-409.18031461,0.00019178,2]
[362879363,1748507433027,-430.0,0.00019178,2]
[362879364,1748507433038,-437.76449362,0.00019178,2]
[362879365,1748507433051,-430.0,0.00019178,2]
[362879366,1748507433060,-417.51189444,0.00019178,2]
[362879367,1748507433070,-430.0,0.00019178,2]
[362879368,1748507433079,-430.0,0.00019178,2]
[362879369,1748507433091,-404.29426956,0.00019178,2]
[362879370,1748507433103,-430.0,0.00019178,2]
[362879371,1748507433113,-508.57836701,0.00019178,2]
[362879372,1748507433124,-430.0,0.00019178,2]
[362879373,1748507433134,-430.0,0.00019178,2]
[362879374,1748507433144,-430.0,0.00019178,2]
[362879375,1748507433153,-352.34221752,0.00019178,2]
[362879376,1748507433163,-430.0,0.00019178,2]
[362879377,1748507433173,-430.0,0.00019178,2]
[362879378,1748507433183,-430.0,0.00019178,2]
[362879379,1748507433192,-430.0,0.00019178,2]
[362879380,1748507433202,-547.34600542,0.00019178,2]
[362879381,1748507433212,-430.0,0.00019178,2]
[362879382,1748507433222,-430.0,0.00019178,2]
[362879383,1748507433231,-430.0,0.00019178,2]
[362879384,1748507433241,-430.0,0.00019178,2]
[362879385,1748507433251,-430.0,0.00019178,2]
[362879386,1748507433262,-409.97627564,0.00019178,2]
[362879387,1748507433273,-430.0,0.00019178,2]
[362879388,1748507433282,-430.0,0.00019178,2]
[362879389,1748507433292,-430.0,0.00019178,2]
[362879390,1748507433302,-430.0,0.00019178,2]
[362879391,1748507433311,-430.0,0.00019178,2]
[362879392,1748507433321,-430.0,0.00019178,2]
[362879393,1748507433331,-430.0,0.00019178,2]
[362879394,1748507433340,-430.0,0.00019178,2]
[362879395,1748507433351,-430.0,0.00019178,2]
[362879396,1748507433360,-370.0,0.00019178,2]
[362879397,1748507433370,-450.0,0.00019178,2]
[362879398,1748507433380,-315.19481354,0.00019178,2]
[362879399,1748507433389,-430.0,0.00019178,2]
[362879400,1748507433399,-430.0,0.00019178,2]
[362879401,1748507433409,-430.0,0.00019178,2]
[362879402,1748507433418,-430.0,0.00019178,2]
[362879403,1748507433428,-430.0,0.00019178,2]
[362879404,1748507433437,-430.0,0.00019178,2]
[362879405,1748507433447,-430.0,0.00019178,2]
[362879406,1748507433456,-430.0,0.00019178,2]
[362879407,1748507433467,-500.0,0.00019178,2]
[362879408,1748507433476,-430.0,0.00019178,2]
[362879409,1748507433485,-430.0,0.00019178,2]
[362879410,1748507433495,-430.0,0.00019178,2]
[362879411,1748507433505,-430.0,0.00019178,2]
[362879412,1748507433516,-430.0,0.00019178,2]
[362879413,1748507433525,-405.06258156,0.00019178,2]
[362879414,1748507433535,-430.0,0.00019178,2]
[362879415,1748507433545,-430.0,0.00019178,2]
[362879416,1748507433554,-430.0,0.00019178,2]
[362879417,1748507433565,-430.0,0.00019178,2]
[362879418,1748507433575,-430.0,0.00019178,2]
[362879419,1748507433584,-446.33880489,0.00019178,2]
[362879420,1748507433594,-430.0,0.00019178,2]
[362879421,1748507433603,-430.0,0.00019178,2]
[362879422,1748507433613,-370.0,0.00019178,2]
[362879423,1748507433623,-430.0,0.00019178,2]
[362879424,1748507433632,-400.0,0.00019178,2]
[362879425,1748507433642,-430.0,0.00019178,2]
[362879426,1748507433651,-430.0,0.00019178,2]
[362879427,1748507433661,-507.24698348,0.00019178,2]
[362879428,1748507433671,-430.0,0.00019178,2]
[362879429,1748507433681,-470.0,0.00019178,2]
[362879430,1748507433691,-347.1459769,0.00019178,2]
[362879431,1748507433701,-400.0,0.00019178,2]
[362879432,1748507433711,-420.0,0.00019178,2]
[362879433,1748507433721,-430.0,0.00019178,2]
[362879434,1748507433731,-400.0,0.00019178,2]
[362879435,1748507433741,-370.0,0.00019178,2]
[362879436,1748507433751,-400.0,0.00019178,2]
[362879437,1748507433760,-469.10966085,0.00019178,2]
[362879438,1748507433771,-479.16774855,0.00019178,2]
[362879439,1748507433780,-430.0,0.00019178,2]
[362879440,1748507433790,-430.0,0.00019178,2]
[362879441,1748507433799,-505.32046801,0.00019178,2]
[362879442,1748507433809,-430.0,0.00019178,2]
[362879443,1748507433818,-430.0,0.00019178,2]
[362879444,1748507433828,-430.0,0.00019178,2]
[362879445,1748507433838,-420.0,0.00019178,2]
[362879446,1748507433848,-430.0,0.00019178,2]
[362879447,1748507433857,-430.0,0.00019178,2]
[362879448,1748507433867,-548.05350165,0.00019178,2]
[362879449,1748507433877,-430.0,0.00019178,2]
[362879450,1748507433886,-332.34283784,0.00019178,2]
[362879451,1748507433897,-320.0,0.00019178,2]
[362879452,1748507433906,-430.0,0.00019178,2]
[362879453,1748507433916,-430.0,0.00019178,2]
[362879454,1748507433926,-430.0,0.00019178,2]
[362879455,1748507433935,-430.0,0.00019178,2]
[362879456,1748507433945,-430.0,0.00019178,2]
[362879457,1748507433955,-430.0,0.00019178,2]
[362879458,1748507433964,-430.0,0.00019178,2]
[362879459,1748507433973,-430.0,0.00019178,2]
[362879460,1748507433982,-430.0,0.00019178,2]
[362879461,1748507433991,-430.0,0.00019178,2]
[362879462,1748507434001,-413.81121125,0.00019178,2]
[362879463,1748507434011,-430.0,0.00019178,2]
[362879464,1748507434021,-430.0,0.00019178,2]
[362879465,1748507434031,-430.0,0.00019178,2]
[362879466,1748507434040,-455.96145594,0.00019178,2]
[362879467,1748507434053,-430.0,0.00019178,2]
[362879468,1748507434063,-452.87921709,0.00019178,2]
[362879469,1748507434073,-430.0,0.00019178,2]
[362879470,1748507434083,-430.0,0.00019178,2]
[362879471,1748507434092,-430.0,0.00019178,2]
[362879472,1748507434102,-430.0,0.00019178,2]
[362879473,1748507434112,-892.07,0.00019178,2]
[362879474,1748507434122,-430.0,0.00019178,2]
[362879475,1748507434132,-430.0,0.00019178,2]
[362879476,1748507434142,-430.0,0.00019178,2]
[362879477,1748507434152,-430.0,0.00019178,2]
[362879478,1748507434161,-430.0,0.00019178,2]
[362879479,1748507434171,-430.0,0.00019178,2]
[362879480,1748507434181,-365.33072717,0.00019178,2]
[362879481,1748507434190,-430.0,0.00019178,2]
[362879482,1748507434199,-376.8597173,0.00019178,2]
[362879483,1748507434209,-430.0,0.00019178,2]
[362879484,1748507434219,-430.0,0.00019178,2]
[362879485,1748507434228,-430.0,0.00019178,2]
[362879486,1748507434238,-430.0,0.00019178,2]
[362879487,1748507434248,-430.0,0.00019178,2]
[362879488,1748507434258,-430.0,0.00019178,2]
[362879489,1748507434267,-430.0,0.00019178,2]
[362879490,1748507434277,-430.0,0.00019178,2]
[362879491,1748507434287,-430.0,0.00019178,2]
[362879492,1748507434297,-430.0,0.00019178,2]
[362879493,1748507434307,-430.0,0.00019178,2]
[362879494,1748507434317,-430.0,0.00019178,2]
[362879495,1748507434327,-460.11,0.00019178,2]
[362879496,1748507434336,-813.5,0.00019178,2]
[362879497,1748507434345,-430.0,0.00019178,2]
[362879498,1748507434355,-430.0,0.00019178,2]
[362879499,1748507434364,-430.0,0.00019178,2]
[362879500,1748507434374,-430.0,0.00019178,2]
[362879501,1748507434383,-430.0,0.00019178,2]
[362879502,1748507434393,-430.0,0.00019178,2]
[362879503,1748507434402,-430.0,0.00019178,2]
[362879504,1748507434412,-1569.52,0.00019178,2]
[362879505,1748507434422,-430.0,0.00019178,2]
[362879506,1748507434431,-430.0,0.00019178,2]
[362879507,1748507434441,-430.0,0.00019178,2]
[362879508,1748507434451,-430.0,0.00019178,2]
[362879509,1748507434461,-430.0,0.00019178,2]
[362879510,1748507434470,-430.0,0.00019178,2]
[362879511,1748507434480,-430.0,0.00019178,2]
[362879512,1748507434490,-430.0,0.00019178,2]
[362879513,1748507434500,-430.0,0.00019178,2]
[362879514,1748507434510,-430.0,0.00019178,2]
[362879515,1748507434520,-430.0,0.00019178,2]
[362879516,1748507434529,-430.0,0.00019178,2]
[362879517,1748507434538,-400.0,0.00019178,2]
[362879518,1748507434548,-430.0,0.00019178,2]
[362879519,1748507434558,-430.0,0.00019178,2]
[362879520,1748507434567,-430.0,0.00019178,2]
[362879521,1748507434577,-430.0,0.00019178,2]
[362879522,1748507434586,-430.0,0.00019178,2]
[362879523,1748507434595,-430.0,0.00019178,2]
[362879524,1748507434605,-475.33,0.00019178,2]
[362879525,1748507434614,-430.0,0.00019178,2]
[362879526,1748507434623,-473.56540326,0.00019178,2]
[362879527,1748507434633,-430.0,0.00019178,2]
[362879528,1748507434643,-430.0,0.00019178,2]
[362879529,1748507434653,-430.0,0.00019178,2]
[362879530,1748507434664,-430.0,0.00019178,2]
[362879531,1748507434674,-430.0,0.00019178,2]
[362879532,1748507434683,-430.0,0.00019178,2]
[362879533,1748507434693,-798.6,0.00019178,2]
[362879534,1748507434702,-430.0,0.00019178,2]
[362879535,1748507434712,-430.0,0.00019178,2]
[362879536,1748507434721,-430.0,0.00019178,2]
[362879537,1748507434730,-430.0,0.00019178,2]
[362879538,1748507434740,-430.0,0.00019178,2]
[362879539,1748507434749,-430.0,0.00019178,2]
[362879540,1748507434759,-430.0,0.00019178,2]
[362879541,1748507434769,-430.0,0.00019178,2]
[362879542,1748507434778,-430.0,0.00019178,2]
[362879543,1748507434787,-430.0,0.00019178,2]
[362879544,1748507434796,-430.0,0.00019178,2]
[362879545,1748507434806,-430.0,0.00019178,2]
[362879546,1748507434815,-430.0,0.00019178,2]
[362879547,1748507434824,-430.0,0.00019178,2]
[362879548,1748507434833,-430.0,0.00019178,2]
[362879549,1748507434843,-430.0,0.00019178,2]
[362879550,1748507434853,-430.0,0.00019178,2]
[362879551,1748507434863,-430.0,0.00019178,2]
[362879552,1748507434873,-430.0,0.00019178,2]
[362879553,1748507434883,-430.0,0.00019178,2]
[362879554,1748507434893,-430.0,0.00019178,2]
[362879555,1748507434903,-430.0,0.00019178,2]
[362879556,1748507434913,-430.0,0.00019178,2]
[362879557,1748507434922,-522.0083934,0.00019178,2]
[362879558,1748507434931,-430.0,0.00019178,2]
[362879559,1748507434941,-430.0,0.00019178,2]
[362879560,1748507434951,-430.0,0.00019178,2]
[362879561,1748507434960,-439.17,0.00019178,2]
[362879562,1748507434970,-430.0,0.00019178,2]
[362879563,1748507434980,-400.0,0.00019178,2]
[362879564,1748507434989,-430.0,0.00019178,2]
[362879565,1748507434999,-430.0,0.00019178,2]
[362879566,1748507435008,-430.0,0.00019178,2]
[362879567,1748507435018,-430.0,0.00019178,2]
[362879568,1748507435027,-515.57375839,0.00019178,2]
[362879569,1748507435037,-197.70806257,0.00019178,2]
[362879570,1748507435049,-430.0,0.00019178,2]
[362879571,1748507435059,-430.0,0.00019178,2]
[362879572,1748507435068,-430.0,0.00019178,2]
[362879573,1748507435078,-430.0,0.00019178,2]
[362879574,1748507435087,-430.0,0.00019178,2]
[362879575,1748507435097,-430.0,0.00019178,2]
[362879576,1748507435106,-430.0,0.00019178,2]
[362879577,1748507435117,-430.0,0.00019178,2]
[362879578,1748507435127,-430.0,0.00019178,2]
[362879579,1748507435136,-558.838351,0.00019178,2]
[362879580,1748507435146,-443.44006588,0.00019178,2]
[362879581,1748507435157,-430.0,0.00019178,2]
[362879582,1748507435167,-430.0,0.00019178,2]
[362879583,1748507435176,-430.0,0.00019178,2]
[362879584,1748507435186,-430.0,0.00019178,2]
[362879585,1748507435197,-870.52,0.00019178,2]
[362879586,1748507435207,-430.0,0.00019178,2]
[362879587,1748507435216,-430.0,0.00019178,2]
[362879588,1748507435227,-430.0,0.00019178,2]
[362879589,1748507435237,-430.0,0.00019178,2]
[362879590,1748507435247,-430.0,0.00019178,2]
[362879591,1748507435258,-430.0,0.00019178,2]
[362879592,1748507435268,-1021.04,0.00019178,2]
[362879593,1748507435278,-430.0,0.00019178,2]
[362879594,1748507435288,-505.91566418,0.00019178,2]
[362879595,1748507435298,-430.0,0.00019178,2]
[362879596,1748507435308,-430.0,0.00019178,2]
[362879597,1748507435420,-370.0,0.00019178,2]
[362879598,1748507435431,-430.0,0.00019178,2]
[362879599,1748507435440,-251.62774334,0.00019178,2]
[362879600,1748507435450,-430.0,0.00019178,2]
[362879601,1748507435461,-430.0,0.00019178,2]
[362879602,1748507435471,-430.0,0.00019178,2]
[362879603,1748507435480,-430.0,0.00019178,2]
[362879604,1748507435490,-430.0,0.00019178,2]
[362879605,1748507435499,-430.0,0.00019178,2]
[362879606,1748507435509,-430.0,0.00019178,2]
[362879607,1748507435520,-430.0,0.00019178,2]
[362879608,1748507435530,-500.0,0.00019178,2]
[362879609,1748507435539,-500.0,0.00019178,2]
[362879610,1748507435550,-430.0,0.00019178,2]
[362879611,1748507435559,-274.03087011,0.00019178,2]
[362879612,1748507435569,-430.0,0.00019178,2]
[362879613,1748507435579,-370.0,0.00019178,2]
[362879614,1748507435589,-430.0,0.00019178,2]
[362879615,1748507435599,-401.09780738,0.00019178,2]
[362879616,1748507435609,-430.0,0.00019178,2]
[362879617,1748507435619,-430.0,0.00019178,2]
[362879618,1748507435629,-430.0,0.00019178,2]
[362879619,1748507435639,-430.0,0.00019178,2]
[362879620,1748507435649,-1008.16,0.00019178,2]
[362879621,1748507435658,-430.0,0.00019178,2]
[362879622,1748507435668,-430.0,0.00019178,2]
[362879623,1748507435678,-420.0,0.00019178,2]
[362879624,1748507435687,-430.0,0.00019178,2]
[362879625,1748507435696,-430.0,0.00019178,2]
[362879626,1748507435706,-430.0,0.00019178,2]
[362879627,1748507435716,-472.60810396,0.00019178,2]
[362879628,1748507435725,-430.0,0.00019178,2]
[362879629,1748507435735,-430.0,0.00019178,2]
[362879630,1748507435744,-430.0,0.00019178,2]
[362879631,1748507435753,-430.0,0.00019178,2]
[362879632,1748507435763,-430.0,0.00019178,2]
[362879633,1748507435774,-430.0,0.00019178,2]
[362879634,1748507435783,-430.0,0.00019178,2]
[362879635,1748507435792,-430.0,0.00019178,2]
[362879636,1748507435801,-430.0,0.00019178,2]
[362879637,1748507435810,-430.0,0.00019178,2]
[362879638,1748507435819,-430.0,0.00019178,2]
[362879639,1748507435829,-207.85990414,0.000192,2]
[362879640,1748507435838,-337.46764265,0.00019452,2]
[362879641,1748507435848,-430.0,0.00019452,2]
[362879642,1748507435857,-430.0,0.00019452,2]
[362879643,1748507435867,-430.0,0.00019452,2]
[362879644,1748507435877,-430.0,0.00019452,2]
[362879645,1748507435885,-532.06063339,0.00019452,2]
[362879646,1748507435896,-430.0,0.00019452,2]
[362879647,1748507435905,-430.0,0.00019452,2]